fUST/lending_fUST_20240409
["ID","MTS","AMOUNT","RATE_DAILY","PERIOD"]
[321927000,1712639439988,-513.18,0.00035616,2]
[321927002,1712639439997,-375.89308946,0.00035616,2]
[321927004,1712639440006,-500.0,0.00035616,2]
[321927006,1712639440015,-500.0,0.00035616,2]
[321927008,1712639440024,-1928.18,0.00035616,2]
[321927010,1712639440034,-500.0,0.00035616,2]
[321927012,1712639440043,-501.3297778,0.00035616,2]
[321927014,1712639440052,-500.0,0.00035616,2]
[321927016,1712639440061,-500.0,0.00035616,2]
[321927018,1712639440070,-907.03,0.00035616,2]
[321927020,1712639440079,-470.73586514,0.00035616,2]
[321927022,1712639440089,-500.0,0.00035616,2]
[321927024,1712639440099,-500.0,0.00035616,2]
[321927026,1712639440110,-500.0,0.00035616,2]
[321927028,1712639440119,-500.0,0.00035616,2]
[321927029,1712639440128,-500.0,0.00035616,2]
[321927031,1712639440137,-500.0,0.00035616,2]
[321927032,1712639440147,-597.89,0.00035616,2]
[321927034,1712639440156,-501.84010114,0.00035616,2]
[321927036,1712639440165,-519.27775112,0.00035616,2]
[321927038,1712639440174,-500.53652385,0.00035616,2]
[321927040,1712639440183,-500.0,0.00035616,2]
[321927042,1712639440192,-500.0,0.00035616,2]
[321927044,1712639440202,-500.0,0.00035616,2]
[321927045,1712639440212,-300.0,0.00035616,2]
[321927047,1712639440220,-502.49000273,0.00035616,2]
[321927054,1712639440275,-446.74205314,0.00035616,2]
[321927055,1712639440289,-840.71,0.00035616,2]
[321927057,1712639440298,-298.5633026,0.00035616,2]
[321927059,1712639440308,-507.76012777,0.00035616,2]
[321927061,1712639440317,-500.0,0.00035616,2]
[321927063,1712639440326,-500.0,0.00035616,2]
[321927065,1712639440335,-1000.0,0.00035616,2]
[321927066,1712639440345,-502.76,0.00035616,2]
[321927068,1712639440355,-500.0,0.00035616,2]
[321927070,1712639440364,-500.0,0.00035616,2]
[321927072,1712639440373,-500.0,0.00035616,2]
[321927074,1712639440383,-500.0,0.00035616,2]
[321927076,1712639440392,-500.0,0.00035616,2]
[321927078,1712639440403,-913.71,0.00035616,2]
[321927079,1712639440412,-500.0,0.00035616,2]
[321927081,1712639440422,-500.0,0.00035616,2]
[321927083,1712639440432,-500.0,0.00035616,2]
[321927085,1712639440441,-502.01498888,0.00035616,2]
[321927087,1712639440450,-500.0,0.00035616,2]
[321927089,1712639440460,-500.0,0.00035616,2]
[321927091,1712639440469,-500.0,0.00035616,2]
[321927092,1712639440478,-500.0,0.00035616,2]
[321927094,1712639440488,-502.13792415,0.00035616,2]
[321927096,1712639440497,-506.44836463,0.00035616,2]
[321927098,1712639440506,-500.0,0.00035616,2]
[321927100,1712639440515,-540.23,0.00035616,2]
[321927102,1712639440524,-5915.35,0.00035616,2]
[321927104,1712639440534,-500.0,0.00035616,2]
[321927106,1712639440542,-500.0,0.00035616,2]
[321927107,1712639440551,-185.61182284,0.00035616,2]
[321927109,1712639440562,-530.65921602,0.00035616,2]
[321927111,1712639440571,-10395.06,0.00035616,2]
[321927113,1712639440581,-500.0,0.00035616,2]
[321927115,1712639440590,-500.0,0.00035616,2]
[321927117,1712639440599,-8874.7,0.00035616,2]
[321927119,1712639440609,-3164.62,0.00035616,2]
[321927121,1712639440618,-500.0,0.00035616,2]
[321927123,1712639440627,-500.0,0.00035616,2]
[321927124,1712639440637,-1615.82,0.00035616,2]
[321927126,1712639440646,-500.63435886,0.00035616,2]
[321927128,1712639440655,-500.0,0.00035616,2]
[321927130,1712639440664,-500.0,0.00035616,2]
[321927132,1712639440673,-500.0,0.00035616,2]
[321927134,1712639440683,-2100.67,0.00035616,2]
[321927136,1712639440692,-443.52170791,0.00035616,2]
[321927138,1712639440701,-503.73532672,0.00035616,2]
[321927139,1712639440711,-500.0,0.00035616,2]
[321927141,1712639440720,-500.0,0.00035616,2]
[321927143,1712639440729,-500.0,0.00035616,2]
[321927145,1712639440739,-1310.98,0.00035616,2]
[321927147,1712639440748,-504.48890555,0.00035616,2]
[321927149,1712639440757,-500.0,0.00035616,2]
[321927151,1712639440766,-500.0,0.00035616,2]
[321927153,1712639440775,-500.0,0.00035616,2]
[321927154,1712639440784,-500.0,0.00035616,2]
[321927156,1712639440794,-512.33534483,0.00035616,2]
[321927158,1712639440803,-625.99,0.00035616,2]
[321927160,1712639440814,-500.0,0.00035616,2]
[321927162,1712639440827,-500.0,0.00035616,2]
[321927164,1712639440836,-500.0,0.00035616,2]
[321927166,1712639440845,-500.0,0.00035616,2]
[321927168,1712639440854,-363.79929144,0.00035616,2]
[321927170,1712639440864,-500.0,0.00035616,2]
[321927171,1712639440873,-500.0,0.00035616,2]
[321927173,1712639440882,-993.73,0.00035616,2]
[321927175,1712639440891,-500.0,0.00035616,2]
[321927177,1712639440900,-653.71,0.00035616,2]
[321927179,1712639440909,-4755.24,0.00035616,2]
[321927181,1712639440918,-500.0,0.00035616,2]
[321927183,1712639440928,-2418.29,0.00035616,2]
[321927184,1712639440937,-500.0,0.00035616,2]
[321927186,1712639440946,-500.0,0.00035616,2]
[321927188,1712639440955,-1040.33,0.00035616,2]
[321927190,1712639440964,-500.0,0.00035616,2]
[321927192,1712639440973,-500.0,0.00035616,2]
[321927194,1712639440982,-2624.12,0.00035616,2]
[321927196,1712639440991,-5641.18,0.00035616,2]
[321927198,1712639441000,-500.0,0.00035616,2]
[321927199,1712639441009,-1846.43,0.00035616,2]
[321927201,1712639441020,-500.0,0.00035616,2]
[321927203,1712639441029,-500.0,0.00035616,2]
[321927205,1712639441039,-2504.96,0.00035616,2]
[321927207,1712639441048,-500.0,0.00035616,2]
[321927209,1712639441058,-3365.38,0.00035616,2]
[321927211,1712639441069,-502.32667059,0.00035616,2]
[321927213,1712639441078,-500.0,0.00035616,2]
[321927219,1712639441135,-500.0,0.00035616,2]
[321927221,1712639441144,-817.39,0.00035616,2]
[321927223,1712639441153,-1252.57,0.00035616,2]
[321927224,1712639441162,-500.0,0.00035616,2]
[321927226,1712639441171,-500.0,0.00035616,2]
[321927228,1712639441182,-500.0,0.00035616,2]
[321927230,1712639441191,-500.0,0.00035616,2]
[321927232,1712639441201,-160.0003061,0.00035616,2]
[321927234,1712639441210,-500.0,0.00035616,2]
[321927236,1712639441219,-617.19848953,0.00035616,2]
[321927237,1712639441228,-521.37489338,0.00035616,2]
[321927239,1712639441237,-839.1,0.00035616,2]
[321927241,1712639441246,-500.0,0.00035616,2]
[321927243,1712639441255,-402.73779313,0.00035616,2]
[321927245,1712639441265,-500.0,0.00035616,2]
[321927247,1712639441274,-500.0,0.00035616,2]
[321927249,1712639441283,-500.0,0.00035616,2]
[321927251,1712639441292,-500.0,0.00035616,2]
[321927252,1712639441301,-500.0,0.00035616,2]
[321927254,1712639441310,-3128.32,0.00035616,2]
[321927256,1712639441319,-534.08736475,0.00035616,2]
[321927258,1712639441328,-500.0,0.00035616,2]
[321927260,1712639441339,-500.0,0.00035616,2]
[321927262,1712639441349,-977.93,0.00035616,2]
[321927264,1712639441358,-500.0,0.00035616,2]
[321927266,1712639441367,-500.0,0.00035616,2]
[321927268,1712639441377,-500.75214191,0.00035616,2]
[321927270,1712639441386,-500.0,0.00035616,2]
[321927272,1712639441395,-500.0,0.00035616,2]
[321927273,1712639441404,-295.76767527,0.00035616,2]
[321927275,1712639441414,-28978.62,0.00035616,2]
[321927277,1712639441423,-500.0,0.00035616,2]
[321927279,1712639441433,-578.42139183,0.00035616,2]
[321927281,1712639441442,-517.13761293,0.00035616,2]
[321927283,1712639441451,-500.0,0.00035616,2]
[321927285,1712639441460,-500.0,0.00035616,2]
[321927287,1712639441470,-6228.95,0.00035616,2]
[321927289,1712639441479,-1972.48,0.00035616,2]
[321927291,1712639441488,-500.0,0.00035616,2]
[321927293,1712639441503,-500.0,0.00035616,2]
[321927296,1712639441521,-500.0,0.00035616,2]
[321927299,1712639441537,-503.06914052,0.00035616,2]
[321927302,1712639441555,-500.0,0.00035616,2]
[321927304,1712639441571,-500.0,0.00035616,2]
[321927307,1712639441587,-500.0,0.00035616,2]
[321927309,1712639441604,-6567.31,0.00035616,2]
[321927312,1712639441621,-8899.76,0.00035616,2]
[321927315,1712639441638,-500.0,0.00035616,2]
[321927317,1712639441655,-500.0,0.00035616,2]
[321927320,1712639441671,-1602.23,0.00035616,2]
[321927323,1712639441690,-500.0,0.00035616,2]
[321927325,1712639441707,-1086.3,0.00035616,2]
[321927327,1712639441719,-13179.40347702,0.00035616,2]
[321927343,1712639442165,-1464.04770161,0.0002547,2]
[321927344,1712639442176,-23435.95229839,0.0002547,2]
[321927345,1712639442187,-15211.31652298,0.00035616,2]
[321927346,1712639442196,-500.98182073,0.00035616,2]
[321927347,1712639442204,-151.0,0.00035616,2]
[321927348,1712639442213,-492.29309545,0.00035616,2]
[321927349,1712639442222,-190.24926093,0.00035616,2]
[321927350,1712639442230,-3658.23,0.00035616,2]
[321927351,1712639442239,-500.0,0.00035616,2]
[321927352,1712639442248,-3094.83,0.00035616,2]
[321927353,1712639442257,-505.64,0.00035616,2]
[321927354,1712639442266,-500.0,0.00035616,2]
[321927355,1712639442276,-500.0,0.00035616,2]
[321927356,1712639442284,-1578.15,0.00035616,2]
[321927357,1712639442293,-500.0,0.00035616,2]
[321927358,1712639442302,-289.78460599,0.00035616,2]
[321927359,1712639442310,-604.37257522,0.00035616,2]
[321927360,1712639442319,-1221.28,0.00035616,2]
[321927361,1712639442328,-2057.31,0.00035616,2]
[321927362,1712639442337,-1406.05,0.00035616,2]
[321927363,1712639442346,-500.0,0.00035616,2]
[321927364,1712639442354,-500.0,0.00035616,2]
[321927365,1712639442363,-500.0,0.00035616,2]
[321927366,1712639442372,-500.0,0.00035616,2]
[321927367,1712639442381,-2037.40904051,0.0003579,2]
[321927368,1712639442390,-500.0,0.00035889,5]
[321927369,1712639442398,-500.0,0.00035889,5]
[321927370,1712639442407,-500.0,0.00035889,5]
[321927371,1712639442416,-503.29258403,0.0003589,5]
[321927372,1712639442425,-500.0,0.0003589,5]
[321927373,1712639442436,-1287.33,0.0003589,5]
[321927374,1712639442445,-505.68295489,0.0003589,5]
[321927375,1712639442454,-505.04084664,0.0003589,5]
[321927376,1712639442462,-500.0,0.0003589,5]
[321927377,1712639442473,-500.0,0.0003589,5]
[321927378,1712639442481,-502.50273748,0.0003589,5]
[321927379,1712639442490,-500.0,0.0003589,5]
[321927380,1712639442498,-433.28928615,0.0003589,5]
[321927381,1712639442507,-500.0,0.0003589,5]
[321927382,1712639442516,-500.0,0.0003589,5]
[321927383,1712639442525,-500.0,0.0003589,5]
[321927384,1712639442534,-500.0,0.0003589,5]
[321927385,1712639442543,-500.0,0.0003589,5]
[321927386,1712639442552,-500.0,0.0003589,5]
[321927387,1712639442562,-500.0,0.0003589,5]
[321927388,1712639442570,-527.96,0.0003589,5]
[321927389,1712639442579,-1961.66,0.0003589,5]
[321927390,1712639442588,-500.0,0.0003589,5]
[321927391,1712639442597,-502.70004287,0.0003589,5]
[321927392,1712639442606,-865.32,0.0003589,5]
[321927393,1712639442615,-502.39209307,0.0003589,5]
[321927394,1712639442623,-835.81,0.0003589,5]
[321927395,1712639442632,-500.0,0.0003589,5]
[321927396,1712639442641,-500.0,0.0003589,5]
[321927397,1712639442650,-500.0,0.0003589,5]
[321927398,1712639442661,-500.0,0.0003589,5]
[321927399,1712639442669,-598.44904967,0.0003589,5]
[321927400,1712639442678,-500.0,0.0003589,5]
[321927401,1712639442688,-500.0,0.0003589,5]
[321927402,1712639442696,-500.0,0.0003589,5]
[321927403,1712639442705,-500.0,0.0003589,5]
[321927404,1712639442714,-532.19641365,0.0003589,5]
[321927406,1712639442723,-1267.08,0.0003589,5]
[321927407,1712639442733,-680.33,0.0003589,5]
[321927408,1712639442742,-1226.82,0.0003589,5]
[321927409,1712639442751,-500.0,0.0003589,5]
[321927411,1712639442760,-500.0,0.0003589,5]
[321927412,1712639442771,-500.0,0.0003589,5]
[321927414,1712639442780,-500.0,0.0003589,5]
[321927415,1712639442790,-500.0,0.0003589,5]
[321927417,1712639442800,-500.0,0.0003589,5]
[321927419,1712639442813,-503.28135605,0.0003589,5]
[321927421,1712639442822,-505.22124711,0.0003589,5]
[321927423,1712639442832,-329.0961659,0.0003589,5]
[321927425,1712639442841,-500.0,0.0003589,5]
[321927427,1712639442851,-513.18,0.0003589,5]
[321927429,1712639442861,-500.0,0.0003589,5]
[321927431,1712639442871,-500.0,0.0003589,5]
[321927433,1712639442881,-1476.69512368,0.0003589,2]
[321927435,1712639442901,-451.48487632,0.0003589,2]
[321927437,1712639442911,-500.0,0.0003589,5]
[321927439,1712639442920,-364.60645534,0.0003589,5]
[321927441,1712639442930,-501.81180401,0.0003589,5]
[321927443,1712639442939,-907.03,0.0003589,5]
[321927445,1712639442948,-500.0,0.0003589,5]
[321927447,1712639442958,-500.0,0.0003589,5]
[321927449,1712639442968,-500.0,0.0003589,5]
[321927451,1712639442977,-500.0,0.0003589,5]
[321927453,1712639442986,-500.0,0.0003589,5]
[321927455,1712639442995,-500.0,0.0003589,5]
[321927457,1712639443005,-597.89,0.0003589,5]
[321927459,1712639443014,-500.0,0.0003589,5]
[321927461,1712639443024,-500.0,0.0003589,5]
[321927463,1712639443034,-500.0,0.0003589,5]
[321927465,1712639443043,-300.0,0.0003589,5]
[321927467,1712639443052,-840.71,0.0003589,5]
[321927469,1712639443062,-500.0,0.0003589,5]
[321927471,1712639443071,-500.0,0.0003589,5]
[321927473,1712639443081,-378.83403318,0.0003589,5]
[321927475,1712639443090,-502.76,0.0003589,5]
[321927477,1712639443099,-500.0,0.0003589,5]
[321927479,1712639443108,-500.0,0.0003589,5]
[321927481,1712639443117,-500.0,0.0003589,5]
[321927483,1712639443126,-500.0,0.0003589,5]
[321927485,1712639443135,-500.0,0.0003589,5]
[321927488,1712639443144,-913.71,0.0003589,5]
[321927490,1712639443153,-500.0,0.0003589,5]
[321927493,1712639443163,-500.0,0.0003589,5]
[321927495,1712639443172,-500.0,0.0003589,5]
[321927498,1712639443182,-500.0,0.0003589,5]
[321927500,1712639443190,-426.41377334,0.0003589,5]
[321927502,1712639443199,-331.13895791,0.0003589,5]
[321927504,1712639443208,-500.0,0.0003589,5]
[321927506,1712639443218,-435.90408624,0.0003589,5]
[321927508,1712639443227,-540.23,0.0003589,5]
[321927510,1712639443236,-5915.35,0.0003589,5]
[321927512,1712639443245,-500.0,0.0003589,5]
[321927514,1712639443254,-500.0,0.0003589,5]
[321927516,1712639443263,-7409.27277737,0.0003589,5]
[321927758,1712639445697,-500.0,0.00035616,2]
[321927761,1712639445707,-8609.09,0.00035616,2]
[321927763,1712639445716,-500.0,0.00035616,2]
[321927764,1712639445726,-500.0,0.00035616,2]
[321927766,1712639445735,-2985.78722263,0.0003589,5]
[321927769,1712639445745,-500.0,0.0003589,5]
[321927770,1712639445754,-500.0,0.0003589,5]
[321927772,1712639445764,-3164.62,0.0003589,5]
[321927775,1712639445774,-500.0,0.0003589,5]
[321927777,1712639445783,-464.74934141,0.0003589,5]
[321927779,1712639445792,-1615.82,0.0003589,5]
[321927781,1712639445802,-504.48504271,0.0003589,5]
[321927783,1712639445815,-500.0,0.0003589,5]
[321927785,1712639445824,-501.09205567,0.0003589,5]
[321927787,1712639445833,-2100.67,0.0003589,5]
[321927789,1712639445842,-500.0,0.0003589,5]
[321927791,1712639445851,-500.0,0.0003589,5]
[321927793,1712639445862,-500.0,0.0003589,5]
[321927794,1712639445871,-1310.98,0.0003589,5]
[321927796,1712639445880,-500.0,0.0003589,5]
[321927798,1712639445889,-249.90501089,0.0003589,5]
[321927801,1712639445900,-502.23267166,0.0003589,5]
[321927803,1712639445909,-500.0,0.0003589,5]
[321927805,1712639445918,-625.99,0.0003589,5]
[321927807,1712639445927,-500.0,0.0003589,5]
[321927808,1712639445938,-500.0,0.0003589,5]
[321927810,1712639445948,-500.0,0.0003589,5]
[321927813,1712639445958,-500.0,0.0003589,5]
[321927814,1712639445967,-993.73,0.0003589,5]
[321927816,1712639445977,-500.0,0.0003589,5]
[321927818,1712639445986,-653.71,0.0003589,5]
[321927819,1712639445996,-4755.24,0.0003589,5]
[321927820,1712639446005,-500.0,0.0003589,5]
[321927821,1712639446014,-2418.29,0.0003589,5]
[321927822,1712639446023,-500.0,0.0003589,5]
[321927823,1712639446032,-500.0,0.0003589,5]
[321927824,1712639446040,-1040.33,0.0003589,5]
[321927825,1712639446049,-500.0,0.0003589,5]
[321927827,1712639446059,-501.15600288,0.0003589,5]
[321927828,1712639446067,-2624.12,0.0003589,5]
[321927829,1712639446076,-5641.18,0.0003589,5]
[321927830,1712639446086,-341.64732285,0.0003589,5]
[321927831,1712639446095,-1846.43,0.0003589,5]
[321927832,1712639446105,-500.0,0.0003589,5]
[321927833,1712639446114,-2504.96,0.0003589,5]
[321927834,1712639446124,-501.82630852,0.0003589,5]
[321927835,1712639446133,-3365.38,0.0003589,5]
[321927836,1712639446142,-500.0,0.0003589,5]
[321927837,1712639446152,-500.0,0.0003589,5]
[321927839,1712639446163,-817.39,0.0003589,5]
[321927841,1712639446172,-1252.57,0.0003589,5]
[321927843,1712639446181,-500.0,0.0003589,5]
[321927845,1712639446191,-502.58820334,0.0003589,5]
[321927846,1712639446200,-156.47,0.0003589,5]
[321927848,1712639446210,-500.0,0.0003589,5]
[321927850,1712639446219,-500.0,0.0003589,5]
[321927852,1712639446229,-839.1,0.0003589,5]
[321927854,1712639446237,-500.0,0.0003589,5]
[321927855,1712639446246,-500.0,0.0003589,5]
[321927856,1712639446255,-528.02933333,0.0003589,5]
[321927857,1712639446265,-203.35958831,0.0003589,5]
[321927858,1712639446275,-500.0,0.0003589,5]
[321927859,1712639446283,-500.0,0.0003589,5]
[321927860,1712639446293,-3128.32,0.0003589,5]
[321927861,1712639446302,-500.0,0.0003589,5]
[321927862,1712639446311,-163.23996538,0.0003589,5]
[321927863,1712639446320,-977.93,0.0003589,5]
[321927864,1712639446329,-500.0,0.0003589,5]
[321927865,1712639446338,-500.0,0.0003589,5]
[321927866,1712639446348,-500.0,0.0003589,5]
[321927867,1712639446357,-500.0,0.0003589,5]
[321927868,1712639446366,-28978.62,0.0003589,5]
[321927869,1712639446377,-337.43909331,0.0003589,5]
[321927870,1712639446387,-500.0,0.0003589,5]
[321927871,1712639446396,-500.0,0.0003589,5]
[321927872,1712639446405,-6228.95,0.0003589,5]
[321927873,1712639446414,-1972.48,0.0003589,5]
[321927874,1712639446423,-500.0,0.0003589,5]
[321927875,1712639446433,-500.0,0.0003589,5]
[321927876,1712639446442,-500.0,0.0003589,5]
[321927877,1712639446452,-500.0,0.0003589,5]
[321927878,1712639446461,-500.0,0.0003589,5]
[321927879,1712639446471,-500.0,0.0003589,5]
[321927880,1712639446479,-6567.31,0.0003589,5]
[321927881,1712639446488,-8899.76,0.0003589,5]
[321927882,1712639446498,-500.0,0.0003589,5]
[321927883,1712639446507,-500.0,0.0003589,5]
[321927884,1712639446516,-1602.23,0.0003589,5]
[321927885,1712639446525,-500.0,0.0003589,5]
[321927886,1712639446535,-1086.3,0.0003589,5]
[321927887,1712639446544,-28390.72,0.0003589,5]
[321927888,1712639446553,-151.0,0.0003589,5]
[321927889,1712639446563,-3658.23,0.0003589,5]
[321927890,1712639446572,-500.0,0.0003589,5]
[321927891,1712639446582,-3094.83,0.0003589,5]
[321927892,1712639446592,-505.64,0.0003589,5]
[321927893,1712639446601,-500.0,0.0003589,5]
[321927894,1712639446611,-500.0,0.0003589,5]
[321927895,1712639446622,-1578.15,0.0003589,5]
[321927897,1712639446631,-500.0,0.0003589,5]
[321927899,1712639446641,-1221.28,0.0003589,5]
[321927901,1712639446650,-2057.31,0.0003589,5]
[321927903,1712639446659,-1406.05,0.0003589,5]
[321927905,1712639446668,-500.0,0.0003589,5]
[321927907,1712639446677,-500.0,0.0003589,5]
[321927910,1712639446688,-8609.09,0.0003589,5]
[321927912,1712639446697,-500.0,0.0003589,5]
[321927914,1712639446706,-632.95,0.00035997,5]
[321927916,1712639446715,-227.19255023,0.00035997,5]
[321927918,1712639446724,-2190.06,0.00035997,5]
[321927919,1712639446733,-500.0,0.00035997,5]
[321927922,1712639446743,-3438.14,0.00035997,5]
[321927924,1712639446752,-500.0,0.00035997,5]
[321927926,1712639446763,-500.0,0.00035997,5]
[321927928,1712639446772,-500.0,0.00035997,5]
[321927929,1712639446782,-500.0,0.00035997,5]
[321927931,1712639446792,-500.0,0.00035997,5]
[321927933,1712639446803,-500.0,0.00035997,5]
[321927936,1712639446815,-1052.79,0.00035997,5]
[321927938,1712639446828,-500.0,0.00035997,5]
[321927940,1712639446838,-500.0,0.00035997,5]
[321927942,1712639446848,-556.6,0.00035997,5]
[321927943,1712639446858,-500.0,0.00035997,5]
[321927952,1712639446932,-512.51385362,0.00035997,5]
[321927954,1712639446942,-500.0,0.00035997,5]
[321927956,1712639446951,-500.0,0.00035997,5]
[321927957,1712639446962,-308.75985958,0.00035997,5]
[321927958,1712639446973,-500.0,0.00035997,5]
[321927959,1712639446985,-705.17,0.00035997,5]
[321927961,1712639446994,-501.7401239,0.00035997,5]
[321927963,1712639447004,-1840.23,0.00035997,5]
[321927965,1712639447014,-500.0,0.00035997,5]
[321927967,1712639447024,-500.0,0.00035997,5]
[321927969,1712639447034,-500.0,0.00035997,5]
[321927971,1712639447045,-500.0,0.00035997,5]
[321927973,1712639447055,-500.0,0.00035997,5]
[321927975,1712639447065,-339.935949,0.00035997,5]
[321927976,1712639447075,-500.0,0.00035997,5]
[321927977,1712639447085,-502.43727925,0.00035997,5]
[321927978,1712639447096,-500.0,0.00035997,5]
[321927979,1712639447106,-501.94480427,0.00035997,5]
[321927980,1712639447115,-500.0,0.00035997,5]
[321927981,1712639447126,-500.0,0.00035997,5]
[321927982,1712639447137,-500.0,0.00035997,5]
[321927983,1712639447146,-500.0,0.00035997,5]
[321927984,1712639447157,-500.0,0.00035997,5]
[321927985,1712639447167,-377.37248519,0.00035998,5]
[321927986,1712639447177,-500.0,0.00035998,5]
[321927987,1712639447187,-500.0,0.00035998,5]
[321927988,1712639447197,-500.0,0.00035998,5]
[321927989,1712639447207,-500.0,0.00035998,5]
[321927990,1712639447217,-537.44729915,0.00035998,5]
[321927991,1712639447228,-300.57471143,0.00035998,5]
[321927992,1712639447238,-500.0,0.00035998,5]
[321927993,1712639447248,-826.12,0.00035998,5]
[321927994,1712639447258,-500.0,0.00035998,5]
[321927995,1712639447269,-595.56,0.00035998,5]
[321927996,1712639447278,-1140.37,0.00035998,5]
[321927997,1712639447291,-500.0,0.00035998,5]
[321927998,1712639447302,-500.0,0.00035998,5]
[321927999,1712639447313,-500.0,0.00035998,5]
[321928000,1712639447324,-500.0,0.00035998,5]
[321928001,1712639447334,-1952.48,0.00035998,5]
[321928002,1712639447344,-501.72300528,0.00035998,5]
[321928003,1712639447354,-500.0,0.00035998,5]
[321928004,1712639447365,-500.0,0.00035998,5]
[321928005,1712639447377,-3471.98,0.00035998,5]
[321928006,1712639447387,-500.0,0.00035998,5]
[321928007,1712639447398,-500.0,0.00035998,5]
[321928008,1712639447408,-500.0,0.00035998,5]
[321928009,1712639447419,-500.0,0.00035998,5]
[321928010,1712639447430,-500.0,0.00035998,5]
[321928011,1712639447440,-500.0,0.00035998,5]
[321928012,1712639447450,-536.35467801,0.00035998,2]
[321928013,1712639447461,-500.0,0.00035998,5]
[321928014,1712639447471,-515.12,0.00035998,5]
[321928015,1712639447480,-500.0,0.00035998,5]
[321928016,1712639447489,-500.0,0.00035999,5]
[321928017,1712639447498,-500.0,0.00035999,5]
[321928018,1712639447511,-500.0,0.00035999,5]
[321928019,1712639447519,-503.01460215,0.00035999,5]
[321928021,1712639447529,-500.0,0.00035999,5]
[321928022,1712639447539,-501.76889348,0.00035999,5]
[321928023,1712639447548,-500.0,0.00035999,5]
[321928024,1712639447558,-500.0,0.00035999,5]
[321928026,1712639447567,-385.25269463,0.00035999,5]
[321928028,1712639447576,-500.0,0.00035999,5]
[321928029,1712639447585,-500.0,0.00035999,5]
[321928031,1712639447594,-500.0,0.00035999,5]
[321928033,1712639447603,-500.0,0.00035999,5]
[321928035,1712639447613,-500.0,0.00035999,5]
[321928037,1712639447623,-501.3228882,0.00035999,5]
[321928039,1712639447632,-501.11126677,0.00035999,5]
[321928040,1712639447642,-165.09,0.00036163,2]
[321928042,1712639447652,-165.09,0.00036163,2]
[321928043,1712639447660,-165.09,0.00036163,2]
[321928044,1712639447669,-165.09,0.00036163,2]
[321928045,1712639447678,-165.09,0.00036163,2]
[321928046,1712639447689,-500.0,0.00036163,5]
[321928047,1712639447698,-646.63045969,0.00036163,5]
[321928048,1712639447707,-500.0,0.00036164,5]
[321928049,1712639447717,-1287.33,0.00036164,5]
[321928050,1712639447726,-500.0,0.00036164,5]
[321928051,1712639447736,-500.0,0.00036164,5]
[321928052,1712639447745,-500.0,0.00036164,5]
[321928053,1712639447754,-500.0,0.00036164,5]
[321928054,1712639447763,-500.0,0.00036164,5]
[321928055,1712639447772,-500.0,0.00036164,5]
[321928056,1712639447781,-500.0,0.00036164,5]
[321928057,1712639447791,-500.0,0.00036164,5]
[321928058,1712639447800,-500.0,0.00036164,5]
[321928059,1712639447809,-500.0,0.00036164,5]
[321928060,1712639447820,-527.96,0.00036164,5]
[321928061,1712639447830,-1961.66,0.00036164,5]
[321928062,1712639447839,-500.0,0.00036164,5]
[321928063,1712639447849,-865.32,0.00036164,5]